fUST/lending_fUST_20250423
["ID","MTS","AMOUNT","RATE_DAILY","PERIOD"]
[358676784,1745359852701,-153.0,0.0002463,2]
[358676785,1745359852710,-153.0,0.0002463,2]
[358676786,1745359852720,-153.0,0.0002463,2]
[358676787,1745359852729,-153.0,0.0002463,2]
[358676788,1745359852739,-153.0,0.0002463,2]
[358676789,1745359852749,-153.0,0.0002463,2]
[358676790,1745359852759,-153.0,0.0002463,2]
[358676791,1745359852769,-500.0,0.00024657,2]
[358676792,1745359852786,-500.0,0.00024657,2]
[358676793,1745359852807,-924.8,0.00024657,2]
[358676794,1745359852822,-2018.1,0.00024657,2]
[358676795,1745359852840,-871.05,0.00024657,2]
[358676796,1745359852860,-500.0,0.00024657,2]
[358676797,1745359852878,-500.0,0.00024657,2]
[358676798,1745359852895,-1246.15,0.00024657,2]
[358676799,1745359852913,-500.0,0.00024657,2]
[358676800,1745359852933,-500.0,0.00024657,2]
[358676801,1745359852949,-168.0,0.00024657,2]
[358676802,1745359852967,-827.8,0.00024657,2]
[358676803,1745359852984,-500.0,0.00024658,2]
[358676804,1745359853001,-500.0,0.00024658,2]
[358676805,1745359853016,-500.0,0.00024658,2]
[358676806,1745359853032,-300.0,0.00024658,2]
[358676807,1745359853048,-500.0,0.00024658,2]
[358676808,1745359853065,-500.0,0.00024658,2]
[358676809,1745359853082,-500.0,0.00024658,2]
[358676810,1745359853099,-500.0,0.00024658,2]
[358676811,1745359853110,-500.0,0.00024658,2]
[358676812,1745359853124,-500.0,0.00024658,2]
[358676813,1745359853142,-500.0,0.00024658,2]
[358676814,1745359853156,-413.62737344,0.00024658,2]
[358676815,1745359853169,-151.0,0.000248,7]
[358676816,1745359853185,-151.0,0.000248,7]
[358676817,1745359853199,-151.0,0.000248,7]
[358676818,1745359853212,-151.0,0.000248,7]
[358676819,1745359853227,-151.0,0.000248,7]
[358676820,1745359853240,-151.0,0.000248,7]
[358676821,1745359853253,-415.103512,0.000248,7]
[358676822,1745359853269,-415.103512,0.000248,7]
[358676823,1745359853283,-153.178815,0.000248,7]
[358676824,1745359853297,-45777.61579482,0.000248,2]
[358676825,1745359853805,-252.15239808,0.000248,2]
[358676826,1745359853818,-561.84778779,0.000248,2]
[358676827,1745359853830,-991.30369863,0.000248,2]
[358676828,1745359853843,-23267.91618808,0.000248,2]
[358676829,1745359853852,-151.0,0.000248,7]
[358676830,1745359854032,-151.0,0.000248,7]
[358676831,1745359854055,-151.0,0.000249,7]
[358676832,1745359854066,-152.456512,0.000249,7]
[358676833,1745359854076,-151.0,0.000249,7]
[358676834,1745359854086,-151.0,0.000249,7]
[358676835,1745359854096,-161.398122,0.000249,7]
[358676836,1745359854106,-151.0,0.000249,7]
[358676837,1745359854115,-272.711386,0.000249,7]
[358676838,1745359854126,-151.0,0.000249,7]
[358676839,1745359854136,-442.640675,0.000249,7]
[358676840,1745359854145,-210.215288,0.000249,2]
[358676841,1745359854155,-442.640675,0.000249,7]
[358676842,1745359854165,-210.215288,0.000249,2]
[358676843,1745359854174,-151.0,0.000249,7]
[358676844,1745359854184,-431.218211,0.000249,7]
[358676845,1745359854193,-431.218211,0.000249,7]
[358676846,1745359854203,-151.0,0.000249,7]
[358676847,1745359854213,-151.0,0.000249,7]
[358676848,1745359854222,-151.0,0.000249,7]
[358676849,1745359854232,-153.386195,0.000249,7]
[358676850,1745359854242,-211.188482,0.000249,7]
[358676851,1745359854251,-211.188482,0.000249,7]
[358676852,1745359854262,-151.0,0.000249,7]
[358676853,1745359854272,-341.70648,0.000249,7]
[358676854,1745359854281,-341.70648,0.000249,7]
[358676855,1745359854291,-151.0,0.000249,7]
[358676856,1745359854300,-350.070422,0.000249,7]
[358676857,1745359854310,-350.070422,0.000249,7]
[358676858,1745359854319,-1362.775139,0.000249,7]
[358676859,1745359854330,-1362.775139,0.000249,7]
[358676860,1745359854341,-623.12453,0.000249,2]
[358676861,1745359854350,-623.12453,0.000249,2]
[358676862,1745359854359,-151.0,0.000249,7]
[358676863,1745359854369,-21.71586234,0.000249,7]
[358676864,1745359854381,-129.28413766,0.000249,7]
[358676865,1745359854391,-151.0,0.000249,7]
[358676866,1745359854401,-151.0,0.000249,7]
[358676867,1745359854410,-178.500279,0.000249,7]
[358676868,1745359854420,-178.500279,0.000249,7]
[358676869,1745359854430,-211.71530434,0.000249,7]
[358676870,1745359854442,-203.38820766,0.000249,7]
[358676871,1745359854452,-415.103512,0.000249,7]
[358676872,1745359854462,-767.572823,0.000249,7]
[358676873,1745359854472,-767.572823,0.000249,7]
[358676874,1745359854483,-5387.61652021,0.000249,2]
[358676875,1745359854495,-268.735003,0.000249,2]
[358676876,1745359854807,-0.00519858,0.00020773,2]
[358676877,1745359862926,-15855.57706977,0.00020773,2]
[358676878,1745359862939,-500.0,0.00021917,2]
[358676879,1745359862949,-500.0,0.00021917,2]
[358676880,1745359862959,-500.0,0.00022465,2]
[358676881,1745359862969,-553.21699117,0.00022739,2]
[358676882,1745359862980,-266467.22741979,0.000249,2]
[358676883,1745359862990,-413.02049231,0.00024931,2]
[358676884,1745359863000,-500.0,0.00024931,2]
[358676885,1745359863012,-2018.1,0.00024931,2]
[358676886,1745359863025,-871.05,0.00024931,2]
[358676887,1745359863036,-500.0,0.00024931,2]
[358676888,1745359863046,-1246.15,0.00024931,2]
[358676889,1745359863056,-500.0,0.00024931,2]
[358676890,1745359863066,-500.0,0.00024931,2]
[358676891,1745359863076,-168.0,0.00024931,2]
[358676892,1745359863087,-827.8,0.00024931,2]
[358676893,1745359863096,-174.0,0.00025,2]
[358676894,1745359863106,-152.83617646,0.00025116,2]
[358676895,1745359863116,-500.0,0.00025205,2]
[358676896,1745359863127,-2018.1,0.00025205,2]
[358676897,1745359863137,-871.05,0.00025205,2]
[358676898,1745359863148,-500.0,0.00025205,2]
[358676899,1745359863158,-1246.15,0.00025205,2]
[358676900,1745359863168,-500.0,0.00025205,2]
[358676901,1745359863178,-500.0,0.00025205,2]
[358676902,1745359863189,-168.0,0.00025205,2]
[358676903,1745359863199,-827.8,0.00025205,2]
[358676904,1745359863209,-1509.85361682,0.00025245,5]
[358676905,1745359863219,-598.226,0.00025479,10]
[358676906,1745359863229,-500.0,0.00025479,2]
[358676907,1745359863239,-2018.1,0.00025479,2]
[358676908,1745359863249,-871.05,0.00025479,2]
[358676909,1745359863259,-348.85518259,0.00025479,2]
[358676910,1745359863271,-1246.15,0.00025479,2]
[358676911,1745359863287,-386.33358551,0.00025479,2]
[358676912,1745359863298,-500.0,0.00025479,2]
[358676913,1745359863308,-168.0,0.00025479,2]
[358676914,1745359863318,-827.8,0.00025479,2]
[358676915,1745359863328,-1071.80489805,0.00025579,2]
[358676916,1745359863338,-1200.0,0.00025704,2]
[358676917,1745359863348,-359.0,0.00025753,3]
[358676918,1745359863358,-359.0,0.00025753,3]
[358676919,1745359863369,-359.0,0.00025753,3]
[358676920,1745359863379,-359.0,0.00025753,3]
[358676921,1745359863389,-359.0,0.00025753,3]
[358676922,1745359863399,-360.38582683,0.00025753,3]
[358676923,1745359863409,-169.0,0.00025753,3]
[358676924,1745359863419,-319.0,0.00025753,3]
[358676925,1745359863430,-317.0,0.00025753,3]
[358676926,1745359863442,-500.0,0.00025753,2]
[358676927,1745359863452,-2018.1,0.00025753,2]
[358676928,1745359863463,-871.05,0.00025753,2]
[358676929,1745359863474,-1246.15,0.00025753,2]
[358676930,1745359863484,-500.0,0.00025753,2]
[358676931,1745359863494,-168.0,0.00025753,2]
[358676932,1745359863504,-827.8,0.00025753,2]
[358676933,1745359863515,-619.0330384,0.00025767,2]
[358676934,1745359863530,-250.0,0.00025777,2]
[358676935,1745359863540,-1509.85361682,0.00025866,6]
[358676936,1745359863550,-174.0,0.0002589,2]
[358676937,1745359863560,-500.0,0.00026027,2]
[358676938,1745359863570,-2018.1,0.00026027,2]
[358676939,1745359863581,-871.05,0.00026027,2]
[358676940,1745359863591,-1246.15,0.00026027,2]
[358676941,1745359863601,-500.0,0.00026027,2]
[358676942,1745359863612,-168.0,0.00026027,2]
[358676943,1745359863622,-827.8,0.00026027,2]
[358676944,1745359863633,-1000.0,0.00026252,2]
[358676945,1745359863644,-251.98532181,0.00026252,2]
[358676946,1745359863655,-500.0,0.00026252,2]
[358676947,1745359863665,-1000.0,0.00026252,2]
[358676948,1745359863676,-324.56454057,0.00026252,2]
[358676949,1745359863686,-437.79116202,0.00026252,2]
[358676950,1745359863697,-1094.64551039,0.00026252,2]
[358676951,1745359863708,-1130.32856788,0.00026252,2]
[358676952,1745359863720,-1000.0,0.00026252,2]
[358676953,1745359863732,-1002.34047415,0.00026252,2]
[358676954,1745359863744,-500.43240723,0.00026252,2]
[358676955,1745359863755,-1000.0,0.00026252,2]
[358676956,1745359863770,-1000.0,0.00026252,2]
[358676957,1745359863783,-382.76224991,0.00026252,2]
[358676958,1745359863795,-500.0,0.00026252,2]
[358676959,1745359863806,-1094.02414013,0.00026252,2]
[358676960,1745359863817,-500.0,0.00026252,2]
[358676961,1745359863828,-1000.0,0.00026252,2]
[358676962,1745359863839,-1000.0,0.00026252,2]
[358676963,1745359863850,-508.34645904,0.00026252,2]
[358676964,1745359863861,-586.92320908,0.00026252,2]
[358676965,1745359863871,-1000.0,0.00026252,2]
[358676966,1745359863883,-1000.0,0.00026252,2]
[358676967,1745359863893,-1000.0,0.00026252,2]
[358676968,1745359863903,-501.95102374,0.00026252,2]
[358676969,1745359863916,-501.06471392,0.00026252,2]
[358676970,1745359863927,-1000.0,0.00026252,2]
[358676971,1745359863941,-1000.0,0.00026252,2]
[358676972,1745359863952,-1000.0,0.00026252,2]
[358676973,1745359863962,-500.0,0.00026301,2]
[358676974,1745359863973,-2018.1,0.00026301,2]
[358676975,1745359863985,-871.05,0.00026301,2]
[358676976,1745359863995,-1246.15,0.00026301,2]
[358676977,1745359864006,-500.0,0.00026301,2]
[358676978,1745359864020,-168.0,0.00026301,2]
[358676979,1745359864031,-827.8,0.00026301,2]
[358676980,1745359864041,-1000.0,0.00026452,2]
[358676981,1745359864172,-1509.85361682,0.00026486,6]
[358676982,1745359864183,-500.0,0.00026575,2]
[358676983,1745359864192,-2018.1,0.00026575,2]
[358676984,1745359864202,-871.05,0.00026575,2]
[358676985,1745359864212,-1246.15,0.00026575,2]
[358676986,1745359864223,-500.0,0.00026575,2]
[358676987,1745359864233,-168.0,0.00026575,2]
[358676988,1745359864242,-827.8,0.00026575,2]
[358676989,1745359864252,-823.0,0.00026638,2]
[358676990,1745359864263,-369458.19357143,0.000268,4]
[358676991,1745359864276,-160.926053,0.000268,7]
[358676992,1745359864287,-151.0,0.000268,7]
[358676993,1745359864298,-151.0,0.000268,7]
[358676994,1745359864308,-151.0,0.000268,7]
[358676995,1745359864318,-151.0,0.000268,7]
[358676996,1745359864328,-151.0,0.000268,7]
[358676997,1745359864339,-151.0,0.000268,7]
[358676998,1745359864349,-151.0,0.000268,7]
[358676999,1745359864359,-151.0,0.000268,7]
[358677000,1745359864368,-272.711386,0.000268,7]
[358677001,1745359864379,-151.0,0.000268,7]
[358677002,1745359864389,-442.640675,0.000268,7]
[358677003,1745359864400,-210.215288,0.000268,2]
[358677004,1745359864410,-442.640675,0.000268,7]
[358677005,1745359864420,-210.215288,0.000268,2]
[358677006,1745359864431,-151.0,0.000268,7]
[358677007,1745359864441,-431.218211,0.000268,7]
[358677008,1745359864451,-431.218211,0.000268,7]
[358677009,1745359864461,-151.0,0.000268,7]
[358677010,1745359864472,-151.0,0.000268,7]
[358677011,1745359864482,-151.0,0.000268,7]
[358677012,1745359864492,-151.0,0.000268,7]
[358677013,1745359864502,-151.0,0.000268,7]
[358677014,1745359864512,-173.221134,0.000268,7]
[358677015,1745359864526,-173.221134,0.000268,7]
[358677016,1745359864537,-211.188482,0.000268,7]
[358677017,1745359864547,-151.0,0.000268,7]
[358677018,1745359864558,-211.188482,0.000268,7]
[358677019,1745359864569,-151.0,0.000268,7]
[358677020,1745359864579,-341.70648,0.000268,7]
[358677021,1745359864591,-341.70648,0.000268,7]
[358677022,1745359864601,-151.0,0.000268,7]
[358677023,1745359864611,-350.070422,0.000268,7]
[358677024,1745359864621,-350.070422,0.000268,7]
[358677025,1745359864631,-1362.775139,0.000268,7]
[358677026,1745359864641,-1362.775139,0.000268,7]
[358677027,1745359864651,-623.12453,0.000268,2]
[358677028,1745359864662,-623.12453,0.000268,2]
[358677029,1745359864672,-151.0,0.000268,7]
[358677030,1745359864682,-229.818965,0.000268,7]
[358677031,1745359864692,-151.0,0.000268,7]
[358677032,1745359864703,-151.0,0.000268,7]
[358677033,1745359864712,-178.500279,0.000268,7]
[358677034,1745359864722,-178.500279,0.000268,7]
[358677035,1745359864732,-415.103512,0.000268,7]
[358677036,1745359864742,-415.103512,0.000268,7]
[358677037,1745359864752,-767.572823,0.000268,7]
[358677038,1745359864762,-767.572823,0.000268,7]
[358677039,1745359864777,-151.0,0.000268,7]
[358677040,1745359864788,-151.0,0.000268,7]
[358677041,1745359864799,-500.0,0.00026849,2]
[358677042,1745359864809,-2018.1,0.00026849,2]
[358677043,1745359864819,-871.05,0.00026849,2]
[358677044,1745359864829,-1246.15,0.00026849,2]
[358677045,1745359864840,-500.0,0.00026849,2]
[358677046,1745359864850,-168.0,0.00026849,2]
[358677047,1745359864860,-827.8,0.00026849,2]
[358677048,1745359864871,-151.0,0.00026952,7]
[358677049,1745359864881,-2245.0,0.00026998,2]
[358677050,1745359864891,-14581.0,0.00027,30]
[358677051,1745359864901,-160.0,0.00027,30]
[358677052,1745359864911,-166.655,0.00027094,2]
[358677053,1745359864922,-150.879,0.00027094,2]
[358677054,1745359864937,-212.545,0.00027094,2]
[358677055,1745359864947,-551.834,0.00027094,2]
[358677056,1745359864957,-706.0,0.00027094,2]
[358677057,1745359864969,-1509.85361682,0.00027107,7]
[358677058,1745359864980,-500.0,0.00027123,2]
[358677059,1745359864991,-2018.1,0.00027123,2]
[358677060,1745359865001,-871.05,0.00027123,2]
[358677061,1745359865010,-1246.15,0.00027123,2]
[358677062,1745359865024,-500.0,0.00027123,2]
[358677063,1745359865034,-168.0,0.00027123,2]
[358677064,1745359865044,-827.8,0.00027123,2]
[358677065,1745359865054,-403.0,0.00027196,2]
[358677066,1745359865063,-200.0,0.0002724,7]
[358677067,1745359865074,-1500.0,0.00027348,2]
[358677068,1745359865084,-180.09184684,0.00027364,2]
[358677069,1745359865093,-216.68729789,0.00027397,2]
[358677070,1745359865103,-1000.0,0.00027397,5]
[358677071,1745359865113,-1000.0,0.00027397,5]
[358677072,1745359865123,-1000.0,0.00027397,5]
[358677073,1745359865133,-1000.0,0.00027397,5]
[358677074,1745359865143,-1000.0,0.00027397,5]
[358677075,1745359865153,-360.73214718,0.00027397,5]
[358677076,1745359865163,-500.0,0.00027397,2]
[358677077,1745359865174,-2018.1,0.00027397,2]
[358677078,1745359865183,-871.05,0.00027397,2]
[358677079,1745359865194,-1246.15,0.00027397,2]
[358677080,1745359865204,-313.03273773,0.00027397,2]
[358677081,1745359865214,-307.39537408,0.00027397,2]
[358677082,1745359865224,-827.8,0.00027397,2]
[358677083,1745359865233,-151.0,0.00027397,7]
[358677084,1745359865243,-151.0,0.00027397,7]
[358677085,1745359865253,-318.4057125,0.00027397,2]
[358677086,1745359865263,-343.933143,0.00027397,2]
[358677087,1745359865274,-566.3756473,0.00027397,2]
[358677088,1745359865284,-566.3756473,0.00027397,2]
[358677089,1745359865294,-566.3756473,0.00027397,2]
[358677090,1745359865303,-566.3756473,0.00027397,2]
[358677091,1745359865313,-359.0,0.00027431,3]
[358677092,1745359865323,-1000.0,0.00027444,5]
[358677093,1745359865333,-11895.81469647,0.00027499,2]
[358677094,1745359865343,-2555.66113742,0.000275,2]
[358677095,1745359865353,-250.0,0.00027612,5]
[358677096,1745359865362,-200.0,0.00027619,7]
[358677097,1745359865372,-361.11191258,0.00027619,7]
[358677098,1745359865382,-1000.0,0.00027652,5]
[358677099,1745359865391,-1000.0,0.00027652,5]
[358677100,1745359865402,-1000.0,0.00027652,5]
[358677101,1745359865411,-500.0,0.00027652,5]
[358677102,1745359865421,-1000.0,0.00027652,5]
[358677103,1745359865431,-1000.0,0.00027652,5]
[358677104,1745359865442,-211.94685853,0.00027652,5]
[358677105,1745359865452,-1000.0,0.00027652,5]
[358677106,1745359865462,-1000.0,0.00027652,5]
[358677107,1745359865472,-1000.0,0.00027652,5]
[358677108,1745359865481,-1134.17576273,0.00027652,5]
[358677109,1745359865491,-1000.0,0.00027652,5]
[358677110,1745359865501,-1000.0,0.00027652,5]
[358677111,1745359865511,-1000.0,0.00027652,5]
[358677112,1745359865523,-613.47398026,0.00027652,5]
[358677113,1745359865534,-1000.0,0.00027652,5]
[358677114,1745359865544,-1000.0,0.00027652,5]
[358677115,1745359865554,-1000.0,0.00027652,5]
[358677116,1745359865565,-1079.69488622,0.00027652,5]
[358677117,1745359865575,-1000.0,0.00027652,5]
[358677118,1745359865586,-1000.0,0.00027652,5]
[358677119,1745359865596,-1000.0,0.00027652,5]
[358677120,1745359865606,-1000.0,0.00027652,5]
[358677121,1745359865616,-1000.0,0.00027652,5]
[358677122,1745359865626,-1000.0,0.00027652,5]
[358677123,1745359865637,-1000.0,0.00027652,5]
[358677124,1745359865647,-1000.0,0.00027652,5]
[358677125,1745359865658,-1000.0,0.00027652,5]
[358677126,1745359865668,-607.29,0.00027671,2]
[358677127,1745359865678,-2018.1,0.00027671,2]
[358677128,1745359865688,-871.05,0.00027671,2]
[358677129,1745359865699,-1246.15,0.00027671,2]
[358677130,1745359865710,-827.8,0.00027671,2]
[358677131,1745359865720,-160.0,0.000277,7]
[358677132,1745359865731,-1509.85361682,0.00027728,7]
[358677133,1745359865740,-723.5,0.00027845,15]
[358677134,1745359865749,-1000.0,0.00027932,5]
[358677135,1745359865761,-2018.1,0.00027945,2]
[358677136,1745359865772,-871.05,0.00027945,2]
[358677137,1745359865781,-1246.15,0.00027945,2]
[358677138,1745359865791,-827.8,0.00027945,2]
[358677139,1745359865801,-250.0,0.00027945,5]
[358677140,1745359865810,-1000.0,0.00027975,5]
[358677141,1745359865927,-1000.0,0.00027975,5]
[358677142,1745359865941,-2780.56852908,0.0002799,2]
[358677143,1745359865952,-3500.0,0.00028,2]
[358677144,1745359865962,-1000.0,0.00028023,2]
[358677145,1745359865971,-525.460903,0.00028023,5]
[358677146,1745359865982,-465.8604298,0.00028103,5]
[358677147,1745359865992,-316.847498,0.00028192,30]
[358677148,1745359866001,-778.11,0.00028211,2]
[358677149,1745359866011,-283.686,0.00028211,2]
[358677150,1745359866023,-2348.987,0.00028211,2]
[358677151,1745359866033,-2018.12088,0.00028219,2]
[358677152,1745359866043,-871.26,0.00028219,2]
[358677153,1745359866052,-1246.35924089,0.00028219,2]
[358677154,1745359866062,-827.9134522,0.00028219,2]
[358677155,1745359866072,-34662.24883073,0.000283,10]
[358677156,1745359866082,-160.0,0.000283,10]
[358677157,1745359866092,-1509.85361682,0.00028348,7]
[358677158,1745359866102,-350.0,0.00028493,5]
[358677159,1745359866112,-200.0,0.0002862,14]
[358677160,1745359866122,-200.0,0.0002862,14]
[358677161,1745359866131,-500.0,0.00028626,5]
[358677162,1745359866140,-500.0,0.00028626,5]
[358677163,1745359866150,-500.0,0.00028674,5]
[358677164,1745359866160,-361.3287945,0.00028719,30]
[358677165,1745359866171,-361.3287945,0.00028719,30]
[358677166,1745359866180,-361.3287945,0.00028719,30]
[358677167,1745359866190,-361.3287945,0.00028719,30]
[358677168,1745359866199,-360.7871995,0.00028719,30]
[358677169,1745359866209,-500.0,0.00028771,5]
[358677170,1745359866219,-500.0,0.00028794,5]
[358677171,1745359866229,-500.0,0.00028803,5]
[358677172,1745359866238,-200.01174162,0.00028803,5]
[358677173,1745359866247,-1509.85361682,0.00028969,8]
[358677174,1745359866257,-1152.0,0.00028986,2]
[358677175,1745359866267,-250.33809377,0.0002899,2]
[358677176,1745359866283,-1800.0,0.00028992,5]
[358677177,1745359866293,-500.62876493,0.00028999,2]
[358677178,1745359866304,-145458.91668508,0.00029,5]
[358677179,1745359866314,-3054.96174625,0.00029,7]
[358677180,1745359866324,-3054.96174625,0.00029,7]
[358677181,1745359866335,-290.506422,0.00029,7]
[358677182,1745359866345,-151.0,0.00029,7]
[358677183,1745359866356,-2895.373421,0.00029,2]
[358677184,1745359866367,-151.0,0.00029,7]
[358677185,1745359866377,-151.0,0.00029,7]
[358677186,1745359866386,-151.0,0.00029,7]
[358677187,1745359866396,-151.0,0.00029,7]
[358677188,1745359866407,-151.0,0.00029,7]
[358677189,1745359866417,-151.0,0.00029,7]
[358677190,1745359866428,-280.239508,0.00029,7]
[358677191,1745359866437,-208.629179,0.00029,7]
[358677192,1745359866447,-272.711386,0.00029,7]
[358677193,1745359866458,-151.0,0.00029,7]
[358677194,1745359866468,-442.640675,0.00029,7]
[358677195,1745359866478,-210.215288,0.00029,2]
[358677196,1745359866488,-442.640675,0.00029,7]
[358677197,1745359866499,-210.215288,0.00029,2]
[358677198,1745359866509,-155.539748,0.00029,7]
[358677199,1745359866519,-431.218211,0.00029,7]
[358677200,1745359866534,-431.218211,0.00029,7]
[358677201,1745359866544,-151.0,0.00029,7]
[358677202,1745359866554,-151.0,0.00029,7]
[358677203,1745359866564,-151.0,0.00029,7]
[358677204,1745359866574,-208.284197,0.00029,7]
[358677205,1745359866584,-151.0,0.00029,7]
[358677206,1745359866594,-151.0,0.00029,7]
[358677207,1745359866605,-151.0,0.00029,7]
[358677208,1745359866615,-173.221134,0.00029,7]
[358677209,1745359866625,-173.221134,0.00029,7]
[358677210,1745359866635,-211.188482,0.00029,7]
[358677211,1745359866645,-151.0,0.00029,7]
[358677212,1745359866655,-211.188482,0.00029,7]
[358677213,1745359866665,-151.0,0.00029,7]
[358677214,1745359866675,-341.70648,0.00029,7]
[358677215,1745359866686,-341.70648,0.00029,7]
[358677216,1745359866696,-151.0,0.00029,7]
[358677217,1745359866706,-350.070422,0.00029,7]
[358677218,1745359866717,-350.070422,0.00029,7]
[358677219,1745359866727,-1362.775139,0.00029,7]
[358677220,1745359866737,-1362.775139,0.00029,7]
[358677221,1745359866747,-623.12453,0.00029,2]
[358677222,1745359866758,-623.12453,0.00029,2]
[358677223,1745359866769,-151.0,0.00029,7]
[358677224,1745359866782,-151.0,0.00029,7]
[358677225,1745359866792,-151.0,0.00029,7]
[358677226,1745359866802,-178.500279,0.00029,7]
[358677227,1745359866812,-178.500279,0.00029,7]
[358677228,1745359866822,-415.103512,0.00029,7]
[358677229,1745359866832,-415.103512,0.00029,7]
[358677230,1745359866842,-767.572823,0.00029,7]
[358677231,1745359866852,-767.572823,0.00029,7]
[358677232,1745359866862,-151.0,0.00029,7]
[358677233,1745359866872,-151.0,0.00029,7]
[358677234,1745359866882,-160.0,0.00029,10]
[358677235,1745359866893,-370.82967297,0.00029041,5]
[358677236,1745359866903,-155.5874151,0.00029041,30]
[358677237,1745359866914,-206.95329519,0.000294,7]
[358677238,1745359866929,-359.0,0.00029438,7]
[358677239,1745359866939,-359.0,0.00029438,7]
[358677240,1745359866948,-359.0,0.00029438,7]
[358677241,1745359866958,-359.0,0.00029438,7]
[358677242,1745359866968,-359.0,0.00029438,7]
[358677243,1745359866978,-359.0,0.00029438,7]
[358677244,1745359866988,-359.0,0.00029438,7]
[358677245,1745359866997,-300.83333432,0.00029438,7]
[358677246,1745359867009,-319.0,0.00029438,7]
[358677247,1745359867020,-319.0,0.00029438,7]
[358677248,1745359867033,-319.0,0.00029438,7]
[358677249,1745359867043,-319.0,0.00029438,7]
[358677250,1745359867053,-319.0,0.00029438,7]
[358677251,1745359867062,-319.0,0.00029438,7]
[358677252,1745359867071,-319.0,0.00029438,7]
[358677253,1745359867081,-319.0,0.00029438,7]
[358677254,1745359867091,-319.0,0.00029438,7]
[358677255,1745359867101,-319.0,0.00029438,7]
[358677256,1745359867110,-319.0,0.00029438,7]
[358677257,1745359867120,-319.0,0.00029438,7]
[358677258,1745359867129,-319.0,0.00029438,7]
[358677259,1745359867139,-319.0,0.00029438,7]
[358677260,1745359867148,-319.0,0.00029438,7]
[358677261,1745359867158,-319.0,0.00029438,7]
[358677262,1745359867168,-319.0,0.00029438,7]
[358677263,1745359867177,-319.0,0.00029438,7]
[358677264,1745359867187,-319.0,0.00029438,7]
[358677265,1745359867196,-359.0,0.00029438,7]
[358677266,1745359867206,-319.0,0.00029438,7]
[358677267,1745359867216,-359.0,0.00029438,7]
[358677268,1745359867226,-319.0,0.00029438,7]
[358677269,1745359867236,-359.0,0.00029438,7]
[358677270,1745359867246,-319.0,0.00029438,7]
[358677271,1745359867256,-319.0,0.00029438,7]
[358677272,1745359867266,-359.0,0.00029438,7]
[358677273,1745359867279,-319.0,0.00029438,7]
[358677274,1745359867289,-359.0,0.00029438,7]
[358677275,1745359867299,-319.0,0.00029438,7]
[358677276,1745359867308,-359.0,0.00029438,7]
[358677277,1745359867318,-319.0,0.00029438,7]
[358677278,1745359867328,-359.0,0.00029438,7]
[358677279,1745359867338,-319.0,0.00029438,7]
[358677280,1745359867347,-359.0,0.00029438,7]
[358677281,1745359867357,-319.0,0.00029438,7]
[358677282,1745359867367,-359.0,0.00029438,7]
[358677283,1745359867377,-319.0,0.00029438,7]